bitfinex/quotes_ETHUSD_20240715
["timestamp","ask_amount","ask_price","bid_price","bid_amount"]
[1721049973623,0.62230691,3358.5,3358.3,2.97769]
[1721049974043,0.70415712,3358.5,3358.3,2.97769]
[1721049974250,0.62230691,3358.7,3358.4,2.9776]
[1721049974411,0.70409596,3358.7,3358.4,2.9776]
[1721049975038,0.70409596,3358.7,3358.5,2.9775]
[1721049975244,0.62230691,3358.8,3358.6,2.9774]
[1721049975449,0.93346037,3359.0,3358.6,2.9774]
[1721049975450,0.62230691,3358.9,3358.6,2.9774]
[1721049975649,0.70404988,3358.9,3358.6,2.9774]
[1721049975864,0.62230691,3358.7,3358.6,2.9774]
[1721049976163,0.7040829,3358.7,3358.6,2.9774]
[1721049976517,0.62230691,3358.7,3358.6,2.9774]
[1721049976731,0.70419924,3358.7,3358.6,2.9774]
[1721049978333,0.70419924,3358.7,3358.4,2.97753]
[1721049978545,0.62240049,3358.7,3358.4,2.97753]
[1721049978719,0.70420061,3358.6,3358.2,2.97771]
[1721049978914,0.08184703,3358.5,3358.2,2.97771]
[1721049979221,0.62240049,3358.6,3358.1,2.97787]
[1721049979222,3.01480049,3358.6,3358.1,2.97787]
[1721049979440,0.70424791,3358.5,3358.1,2.97787]
[1721049979828,0.62240049,3358.5,3358.1,2.97787]
[1721049980051,0.70432432,3358.4,3358.1,2.97787]
[1721049980347,0.62245705,3358.5,3358.1,2.97787]
[1721049980513,0.70432543,3358.4,3358.1,2.97787]
[1721049980718,0.62245705,3358.4,3358.1,2.97787]
[1721049981058,0.70437382,3358.3,3358.1,2.97787]
[1721049981248,0.08189541,3358.2,3358.1,2.97787]
[1721049981412,0.62245086,3358.3,3358.1,2.97787]
[1721049981613,0.62245086,3358.4,3358.1,2.97787]
[1721049981818,0.08188752,3358.3,3358.1,2.97787]
[1721049982018,0.62245086,3358.4,3358.1,2.97787]
[1721049982239,0.70433661,3358.3,3358.1,2.97787]
[1721049982441,0.62245086,3358.3,3358.1,2.97787]
[1721049983572,3.63730173,3358.6,3358.1,2.97787]
[1721049983573,0.62256301,3358.4,3358.1,2.97787]
[1721049983765,0.08188203,3358.3,3358.1,2.97787]
[1721049983924,0.62256301,3358.4,3358.1,2.97787]
[1721049984272,0.70445688,3358.3,3358.1,2.97787]
[1721049984466,0.62256301,3358.3,3358.1,2.97787]
[1721049985654,0.08191999,3358.2,3357.9,5.95598]
[1721049985864,0.62256301,3358.2,3358.1,2.97787]
[1721049986168,0.62256301,3358.3,3358.1,2.97787]
[1721049986322,0.62256301,3358.4,3358.1,2.97787]
[1721049986742,0.70445337,3358.3,3358.1,2.97787]
[1721049986982,0.62256301,3358.3,3358.1,2.97787]
[1721049987167,0.62256301,3358.2,3358.1,2.97787]
[1721049987823,0.7044959,3358.2,3358.1,2.97787]
[1721049988554,0.62256301,3358.2,3358.1,2.97787]
[1721049988957,0.7044959,3358.2,3358.1,2.97787]
[1721049989332,0.62256301,3358.3,3358.1,2.97787]
[1721049990154,0.93384451,3358.4,3358.1,2.97787]
[1721049990155,0.62256301,3358.2,3358.1,2.97787]
[1721049991024,0.70450602,3358.2,3358.1,2.97787]
[1721049991226,0.62256301,3358.2,3358.1,2.97787]
[1721049991447,0.62289245,3358.2,3358.1,2.97787]
[1721049991936,0.70483546,3358.2,3358.1,2.97787]
[1721049992527,0.62289245,3358.2,3358.1,2.97787]
[1721049993034,0.6228738,3358.2,3358.1,2.97787]
[1721049993370,2.3924,3358.6,3358.1,2.97787]
[1721049993590,0.62287498,3358.3,3358.1,2.97787]
[1721049993741,0.0819433,3358.2,3358.1,2.97787]
[1721049993945,0.62287498,3358.2,3358.1,2.97787]
[1721049994146,1.01625577,3358.3,3358.1,2.97787]
[1721049994354,0.70481884,3358.2,3358.1,2.97787]
[1721049994673,0.62287554,3358.2,3358.1,2.97787]
[1721049994871,0.70481884,3358.2,3358.1,2.97787]
[1721049995076,0.62287554,3358.2,3357.9,2.97797]
[1721049995281,0.70487127,3358.1,3357.9,2.97797]
[1721049995578,0.62292797,3358.1,3358.0,2.97796]
[1721049995894,0.62292797,3358.3,3358.1,2.97781]
[1721049996192,0.62292797,3358.4,3358.1,2.97781]
[1721049996330,0.0819155,3358.3,3358.1,2.97781]
[1721049996530,0.62292797,3358.4,3357.5,3.0]
[1721049996732,0.62293347,3358.5,3357.7,2.97816]
[1721049996938,0.93431247,3358.7,3357.7,2.97816]
[1721049996939,0.62293347,3358.7,3358.5,2.97751]
[1721049997142,0.62293347,3358.7,3358.6,2.97743]
[1721049997345,0.93431247,3358.8,3358.7,2.97734]
[1721049997560,1.01617474,3358.8,3358.7,2.97734]
[1721049998270,0.49814996,3358.8,3358.7,2.97733]
[1721049999063,0.93473685,3358.8,3358.7,2.97733]
[1721049999563,1.01416956,3358.8,3358.7,2.97733]
[1721050000130,2.95939874,3358.8,3358.7,2.97733]
[1721050000335,3.03855812,3358.8,3358.7,2.97733]
[1721050000553,1.79187788,3358.8,3358.7,2.97733]
[1721050000736,3.35022818,3358.8,3358.7,2.97733]
[1721050002249,1.79187788,3358.8,3358.7,2.97733]
[1721050002666,0.49349469,3358.8,3358.7,2.97733]
[1721050002834,1.79212491,3358.8,3358.7,2.97733]
[1721050003035,1.71280327,3358.8,3358.7,2.97733]
[1721050003264,1.79212577,3358.8,3358.7,2.97733]
[1721050004265,1.79212577,3358.8,3358.7,5.95467]
[1721050004266,3.35341171,3358.8,3358.7,5.95467]
[1721050004466,3.35341171,3358.8,3358.7,6.50467]
[1721050004467,0.0793225,3358.8,3358.7,6.50467]
[1721050004778,0.93670259,3359.0,3358.9,5.95432]
[1721050004944,8.64902071,3359.1,3359.0,2.97707]
[1721050005146,9.1921076,3359.1,3359.0,5.95414]
[1721050005358,8.41598053,3359.1,3359.0,6.50414]
[1721050005550,8.3367884,3359.1,3359.0,6.50414]
[1721050005865,7.4,3359.1,3359.0,6.50414]
[1721050006068,8.41444395,3359.1,3359.0,6.50414]
[1721050007852,1.01444395,3359.1,3359.0,6.50414]
[1721050008273,0.07765555,3359.1,3359.0,6.50414]
[1721050008864,1.01444395,3359.1,3359.0,6.50414]
[1721050009297,1.24902071,3359.3,3359.2,2.97685]
[1721050009298,1.24822388,3359.3,3359.2,2.97685]
[1721050009507,2.54654157,3359.3,3359.2,2.97685]
[1721050009793,3.03499037,3359.3,3359.2,2.97685]
[1721050009973,1.78676649,3359.3,3359.2,2.97685]
[1721050010146,1.0135868,3359.3,3359.2,2.97685]
[1721050010348,1.0135868,3359.3,3359.2,5.95374]
[1721050010349,0.07765822,3359.3,3359.2,5.95374]
[1721050010690,0.62392563,3359.3,3359.2,5.95374]
[1721050010852,0.70158385,3359.3,3359.2,5.95374]
[1721050012388,0.62392563,3359.4,3359.3,2.97681]
[1721050012691,0.70157632,3359.4,3359.3,2.97681]
[1721050012886,0.7015763,3359.4,3359.3,2.97681]
[1721050013615,0.7015763,3359.4,3359.1,2.97694]
[1721050013778,0.62343091,3359.2,3359.1,2.97694]
[1721050015010,0.70108158,3359.2,3359.1,2.97694]
[1721050015308,0.07765067,3359.2,3359.1,2.97694]
[1721050015486,0.62343091,3359.2,3359.1,2.97694]
[1721050015892,0.70108769,3359.2,3359.1,2.97694]
[1721050016128,3.02078769,3359.2,3358.9,2.97712]
[1721050016337,3.02078769,3359.2,3359.0,2.97707]
[1721050016338,0.07765678,3359.1,3359.0,2.97707]
[1721050016495,1.01358536,3359.1,3359.0,2.97707]
[1721050017039,1.01358536,3359.1,3358.8,2.97718]
[1721050017213,0.07765678,3359.0,3358.9,2.97714]
[1721050017537,0.62338953,3359.0,3358.9,5.97714]
[1721050017692,0.70104631,3359.0,3358.9,5.97714]
[1721050017897,0.62338953,3359.0,3358.9,5.97714]
[1721050018199,0.70104631,3359.0,3358.9,5.97714]
[1721050018803,0.62338953,3359.0,3358.9,5.97714]
[1721050019403,0.70105279,3359.0,3358.9,5.97714]
[1721050019732,0.62338953,3359.0,3358.9,5.97714]
[1721050020417,0.70105279,3359.0,3358.9,5.97714]
[1721050021328,3.25465762,3359.2,3359.0,2.97702]
[1721050021625,0.62330392,3359.1,3359.0,2.97702]
[1721050021826,0.70096715,3359.1,3358.8,2.97725]
[1721050022027,0.70096715,3359.1,3358.2,2.97777]
[1721050022028,0.62330392,3359.0,3358.3,3.0]
[1721050022210,0.62330392,3359.0,3358.9,2.97716]
[1721050022620,0.62330392,3359.0,3358.4,0.55]
[1721050022816,0.62330392,3359.0,3358.7,2.97727]
[1721050023010,0.62330392,3359.0,3358.8,2.97719]
[1721050024333,0.62330392,3359.2,3359.1,2.97698]
[1721050024498,0.93495762,3359.4,3359.3,2.97681]
[1721050025137,1.01261622,3359.4,3359.3,2.97681]
[1721050025536,0.48786542,3359.4,3359.3,2.97681]
[1721050026217,1.73447558,3359.4,3359.3,2.97681]
[1721050026618,0.48786542,3359.4,3359.3,2.97681]
[1721050026839,0.48786542,3359.4,3359.1,2.97694]
[1721050027040,0.62319498,3359.3,3359.1,2.97694]
[1721050027246,0.70085358,3359.2,3359.1,2.97694]
[1721050027437,0.0776586,3359.2,3359.1,2.97694]
[1721050027745,2.61330611,3359.2,3358.8,2.97721]
[1721050027947,0.62328331,3359.0,3358.8,2.97721]
[1721050028143,0.07766006,3358.9,3358.8,2.97721]
[1721050028332,0.70094337,3358.9,3358.8,2.97721]
[1721050028738,0.07766006,3358.9,3358.6,2.97741]
[1721050029046,0.62328331,3359.0,3358.7,2.97728]
[1721050030849,0.62328331,3359.0,3358.4,0.55]
[1721050030850,0.62328331,3359.0,3358.4,2.9776]
[1721050031060,0.62328331,3358.7,3358.4,2.9776]
[1721050031268,1.01245708,3358.9,3358.4,2.9776]
[1721050031269,0.70094807,3358.6,3358.4,2.9776]
[1721050031572,3.32715708,3358.5,3358.4,2.9776]
[1721050031739,2.39236476,3358.5,3358.4,2.9776]
[1721050031940,3.01592512,3358.5,3358.4,2.9776]
[1721050032177,2.39236476,3358.5,3358.4,2.9776]
[1721050032478,2.39236476,3358.5,3358.2,2.97778]
[1721050032662,0.70129125,3358.4,3358.2,2.97778]
[1721050032838,0.70129125,3358.3,3358.2,2.97778]
[1721050033034,0.62362649,3358.3,3358.2,2.97778]
[1721050033774,0.70129125,3358.3,3358.2,2.97778]
[1721050033929,0.62362649,3358.3,3358.2,2.97778]
[1721050034766,0.62369901,3358.3,3358.2,2.97778]
[1721050035062,0.70137896,3358.3,3358.2,2.97778]
[1721050035267,0.54215992,3358.5,3358.4,11.9104]
[1721050035470,0.62362925,3359.3,3359.2,5.95378]
[1721050035668,0.62362925,3359.5,3359.4,2.97672]
[1721050036039,1.24739803,3359.7,3359.5,2.97659]
[1721050036551,1.24739803,3359.7,3359.3,2.97681]
[1721050036754,2.91156157,3359.6,3359.3,2.97681]
[1721050036965,2.91156157,3359.5,3359.3,2.97681]
[1721050037265,1.24739803,3359.5,3359.3,2.97681]
[1721050037464,1.24739803,3359.6,3359.3,2.97681]
[1721050038269,0.36599017,3359.5,3359.3,2.97681]
[1721050038460,1.24739803,3359.6,3359.3,2.97681]
[1721050038771,0.36598422,3359.5,3359.3,2.97681]
[1721050038938,1.24739803,3359.6,3359.3,2.97681]
[1721050040144,0.36607368,3359.5,3359.4,2.97671]
[1721050041037,1.24762428,3359.6,3359.4,2.97671]
[1721050041261,0.36613871,3359.5,3359.4,2.97671]
[1721050043371,1.66439982,3359.5,3359.4,5.95343]
[1721050044475,0.36613871,3359.5,3359.4,5.95343]
[1721050044856,1.24762428,3359.6,3359.5,2.97663]
[1721050046568,2.54582345,3359.6,3359.5,2.97663]
[1721050047177,3.84402171,3359.6,3359.5,2.97663]
[1721050047582,3.84402171,3359.6,3359.1,2.97692]
[1721050047751,3.84402171,3359.6,3358.2,2.3503]
[1721050047752,2.3661,3359.5,3358.9,2.9771]
[1721050047964,2.3661,3359.5,3359.0,2.97707]
[1721050048661,2.3661,3359.5,3358.7,2.97731]
[1721050049159,2.3661,3359.5,3359.4,2.97672]
[1721050049694,2.3661,3359.5,3359.2,2.97683]
[1721050049842,2.3661,3359.5,3358.9,2.97713]
[1721050050188,2.3661,3359.5,3359.1,2.97692]
[1721050050393,2.3661,3359.5,3359.2,2.97688]
[1721050050691,2.3661,3359.5,3358.8,2.97721]
[1721050050846,2.3661,3359.5,3359.3,2.97681]
[1721050050847,1.29822666,3359.4,3359.3,2.97681]
[1721050052065,2.3661,3359.5,3359.4,2.97672]
[1721050052302,1.29824264,3359.5,3359.4,5.95344]
[1721050052600,1.29819917,3359.6,3359.5,2.97663]
[1721050052804,1.29819917,3359.6,3359.5,5.95326]
[1721050054652,7.4,3360.2,3359.9,2.97623]
[1721050054853,1.29809354,3360.1,3359.9,2.97623]
[1721050055086,1.29809354,3360.0,3359.7,5.9528]
[1721050055396,1.29809354,3359.9,3359.7,2.97638]
[1721050055600,2.97575,3360.5,3358.6,5.40177]
[1721050055601,2.3158,3359.7,3358.6,2.97742]
[1721050055750,1.29809354,3359.6,3358.9,2.97709]
[1721050055950,1.29809354,3359.6,3358.8,2.97722]
[1721050056193,5.29231,3359.7,3358.9,2.97708]
[1721050056405,7.23393167,3359.6,3358.8,2.97722]
[1721050056610,4.06910427,3359.6,3358.8,2.97722]
[1721050056756,1.2984232,3359.5,3358.9,2.97716]
[1721050057702,2.3158,3359.3,3358.5,2.97749]
[1721050057854,2.3158,3359.3,3358.4,2.97752]
[1721050057855,2.29989039,3359.2,3358.4,2.97752]
[1721050058054,4.16646638,3359.2,3358.4,2.97752]
[1721050058356,3.16510625,3359.1,3358.4,2.97752]
[1721050058550,0.07443391,3359.0,3358.4,2.97752]
[1721050058763,1.2984232,3358.9,3358.4,2.97752]
[1721050059390,1.2480797,3358.5,3358.4,2.97752]
[1721050059606,2.5465029,3358.5,3358.4,2.97752]
[1721050059786,2.99047114,3358.5,3358.2,2.97777]
[1721050059966,2.68208968,3358.5,3358.2,2.97777]
[1721050060316,2.99087424,3358.4,3358.2,2.97777]
[1721050060462,0.07768352,3358.3,3358.0,2.97793]
[1721050060668,1.01359058,3358.2,3358.0,2.97793]
[1721050060906,0.93590706,3358.2,3358.1,2.97787]
[1721050061273,1.01359007,3358.2,3358.1,2.97787]
[1721050061490,0.07768301,3358.2,3358.1,2.97787]
[1721050061698,1.01359007,3358.2,3358.1,2.97787]
[1721050061886,1.01359007,3358.2,3357.7,2.97822]
[1721050062091,0.62381284,3357.8,3357.7,2.97822]
[1721050062381,0.70149585,3357.8,3357.7,2.97822]
[1721050063288,0.70149585,3357.8,3357.6,2.97827]
[1721050063503,0.62381284,3357.9,3357.2,3.0]
[1721050063684,0.93590706,3358.0,3357.5,2.97836]
[1721050063685,0.70150461,3357.8,3357.5,2.97836]
[1721050063879,0.70150679,3357.7,3357.6,2.97831]
[1721050064102,0.07769251,3357.7,3357.6,2.97831]
[1721050064419,0.62381284,3357.8,3357.6,2.97831]
[1721050064928,0.07769312,3357.7,3357.6,2.97831]
[1721050065229,0.07769312,3357.7,3356.9,5.97889]
[1721050065230,3.17990596,3357.7,3357.3,2.97857]
[1721050065434,3.10221284,3357.7,3357.3,2.97857]
[1721050065731,3.10221284,3357.7,3357.4,2.97849]
[1721050065885,2.4784,3357.7,3357.4,2.97849]
[1721050066077,0.62381284,3357.8,3357.5,2.97838]
[1721050066294,0.62381284,3357.9,3357.5,2.97838]
[1721050066626,0.07769384,3357.8,3357.5,2.97838]
[1721050066797,0.62381284,3357.9,3357.5,2.97838]
[1721050066997,0.07769362,3357.8,3357.5,2.97838]
[1721050067294,0.62381284,3357.9,3357.6,2.97829]
[1721050067521,0.07769482,3357.8,3357.6,2.97829]
[1721050067723,0.62381284,3357.9,3357.6,2.97829]
[1721050069428,3.22960706,3358.1,3357.6,2.97829]
[1721050069429,0.62381284,3358.0,3357.6,2.97829]
[1721050069597,3.22960706,3358.1,3357.5,2.9784]
[1721050069598,2.91751284,3358.1,3357.5,2.9784]
[1721050069800,0.70150562,3358.0,3357.5,2.9784]
[1721050069997,0.70150791,3357.9,3357.5,2.9784]
[1721050070333,0.62248779,3358.0,3357.5,2.9784]
[1721050070530,0.70018402,3357.9,3357.5,2.9784]
[1721050070754,0.62248779,3357.9,3357.5,2.9784]
[1721050071498,1.51988441,3357.9,3357.5,2.9784]
[1721050072142,1.51988441,3357.9,3357.3,2.97854]
[1721050072447,0.62248779,3357.7,3357.1,2.97874]
[1721050072613,0.62248779,3357.6,3357.2,2.97866]
[1721050072811,0.07770127,3357.5,3357.2,2.97866]
[1721050073007,0.70018906,3357.5,3357.2,2.97866]
[1721050073208,0.62248779,3357.6,3357.2,2.97866]
[1721050073733,0.93373168,3357.8,3357.2,2.97866]
[1721050073734,0.62248779,3357.7,3357.3,2.97857]
[1721050074035,0.93373168,3357.8,3356.6,2.97917]
[1721050074036,0.62248779,3357.8,3357.5,2.97832]
[1721050074339,0.93373168,3358.0,3357.6,2.97831]
[1721050074340,0.62248779,3358.0,3357.6,2.97831]
[1721050074500,2.91618779,3358.1,3357.6,2.97831]
[1721050074700,0.07769438,3358.0,3357.6,2.97831]
[1721050074931,2.91618779,3358.1,3357.6,2.97831]
[1721050075125,0.07769396,3358.0,3357.6,2.97831]
[1721050075440,2.91618779,3358.1,3357.6,2.97831]
[1721050075642,0.07769465,3358.0,3357.6,2.97831]
[1721050075835,2.91618779,3358.1,3357.6,2.97831]
[1721050076023,0.07769477,3358.0,3357.6,2.97831]
[1721050076256,2.91618779,3358.1,3357.6,2.97831]
[1721050076563,0.07769488,3358.0,3357.6,2.97831]
[1721050076735,0.62192559,3357.9,3357.6,2.97831]
[1721050077277,3.7228851,3358.1,3357.6,2.97831]
[1721050077625,0.69961999,3358.0,3357.4,2.97847]
[1721050077940,0.62192559,3358.0,3357.4,2.97847]
[1721050078359,0.62192559,3358.0,3357.6,2.9783]
[1721050079158,3.7228851,3358.1,3357.6,2.9783]
[1721050079333,0.07769662,3358.0,3357.6,2.9783]
[1721050079540,3.7228851,3358.1,3357.6,2.9783]
[1721050079851,0.76334735,3358.0,3357.5,2.97833]
[1721050080260,0.76334735,3358.0,3357.6,2.9783]
[1721050080460,2.91562559,3358.1,3357.6,2.9783]
[1721050081038,0.69962115,3358.0,3357.4,2.97842]
[1721050081245,0.62192559,3358.0,3357.4,2.97842]
[1721050081555,5.89349559,3358.1,3357.4,2.97842]
[1721050081868,0.07769649,3358.0,3357.4,2.97842]
[1721050082038,0.98818205,3358.0,3357.4,2.97842]
[1721050082236,1.61010764,3358.0,3357.4,2.97842]
[1721050082447,1.61010764,3358.0,3357.5,2.97839]
[1721050082662,0.98818205,3358.0,3357.5,2.97839]
[1721050083250,0.98818205,3358.0,3357.4,2.97848]
[1721050083450,1.61010764,3358.0,3357.4,2.97848]
[1721050084668,0.98818205,3358.0,3357.4,2.97848]
[1721050085063,1.61010764,3358.0,3357.5,2.9784]
[1721050085270,1.61010764,3358.0,3357.6,2.9783]
[1721050085437,0.62192559,3358.0,3357.6,2.9783]
[1721050086265,0.07769605,3357.9,3357.6,2.9783]
[1721050086575,0.62192559,3358.0,3357.6,2.9783]
[1721050086736,0.69962194,3358.0,3357.6,2.9783]
[1721050087252,0.69962194,3357.9,3357.6,2.9783]
[1721050087465,0.62192559,3357.9,3357.6,2.9783]
[1721050091677,0.62192559,3357.9,3357.4,2.97843]
[1721050091862,0.62192559,3357.9,3357.5,2.97839]
[1721050092172,0.62232006,3357.7,3357.5,2.97839]
[1721050092545,0.62232006,3357.6,3357.5,2.97839]
[1721050092758,0.62232006,3357.6,3357.2,2.97862]
[1721050092952,0.62232006,3357.6,3357.1,2.97875]
[1721050092953,0.62240262,3357.5,3357.3,2.97856]
[1721050093165,0.07770663,3357.4,3357.3,2.97856]
[1721050093568,0.62240262,3357.5,3357.3,2.97856]
[1721050093780,2.3967,3357.4,3357.2,2.97861]
[1721050094153,2.3967,3357.4,3357.3,2.97858]
[1721050094356,2.47440464,3357.4,3357.3,2.97858]
[1721050094556,2.3967,3357.4,3357.3,2.97858]
[1721050094752,2.47440621,3357.4,3357.3,2.97858]
[1721050095576,2.47440634,3357.4,3357.3,2.97858]
[1721050096175,2.47440634,3357.4,3357.1,2.97868]
[1721050096380,2.3967,3357.4,3357.1,2.97868]
[1721050096761,2.3967,3357.4,3357.2,5.95726]
[1721050097167,3.01910262,3357.4,3357.2,5.95726]
[1721050097578,0.62240262,3357.4,3357.2,5.95726]
[1721050098155,0.62240262,3357.4,3357.3,2.97858]
[1721050098657,0.70010873,3357.4,3357.3,2.97858]
[1721050098879,0.62240262,3357.5,3357.3,2.97858]
[1721050099184,0.62270683,3357.5,3357.3,2.97858]
[1721050099356,0.70040972,3357.4,3357.3,2.97858]
[1721050099551,0.62270683,3357.4,3357.3,2.97858]
[1721050099789,0.07770289,3357.4,3357.3,2.97858]
[1721050100083,0.70040972,3357.4,3357.3,2.97858]
[1721050100288,0.93406025,3357.5,3357.4,2.97847]
[1721050100859,1.01176306,3357.5,3357.4,2.97847]
[1721050101060,0.93406025,3357.5,3357.4,2.97847]
[1721050101365,1.24541367,3357.5,3357.2,5.95722]
[1721050101592,0.93610963,3357.3,3357.2,5.95722]
[1721050101897,2.33615031,3357.5,3357.3,2.97854]
[1721050102100,0.44420406,3357.4,3357.3,2.97854]
[1721050102590,2.99141009,3357.4,3357.3,2.97854]
[1721050103013,1.01421596,3357.4,3357.3,5.95712]
[1721050103303,0.93651355,3357.4,3357.3,5.95712]
[1721050103755,0.07770241,3357.4,3357.3,5.95716]
[1721050103959,0.93651355,3357.4,3357.3,5.95716]
[1721050104159,1.24815031,3357.5,3357.4,2.97849]
[1721050104373,2.54712111,3357.5,3357.4,5.95698]
[1721050104610,1.74358418,3357.5,3357.4,5.95698]
[1721050104788,2.99173449,3357.5,3357.4,5.95698]
[1721050105103,1.74358418,3357.5,3357.4,5.95698]
[1721050105402,1.74354826,3357.5,3357.4,5.95698]
[1721050105760,1.01519461,3357.5,3357.4,8.93547]
[1721050105982,1.01519461,3357.5,3357.4,9.48547]
[1721050105983,0.70267683,3357.5,3357.4,9.48547]
[1721050106185,0.0776952,3357.5,3357.4,9.48547]
[1721050106396,0.93749941,3357.6,3357.5,5.9568]
[1721050106566,2.2363565,3357.6,3357.5,5.9568]
[1721050106907,2.31404692,3357.6,3357.5,5.9568]
[1721050107403,1.74361718,3357.6,3357.5,5.9568]
[1721050108062,2.99176749,3357.6,3357.5,2.9784]
[1721050108262,1.74361718,3357.6,3357.5,2.9784]
[1721050108506,1.74375033,3357.6,3357.5,2.9784]
[1721050108893,1.74377061,3357.6,3357.5,2.9784]
[1721050110561,3.30711332,3357.6,3357.5,2.9784]
[1721050110759,3.30704827,3357.6,3357.5,2.9784]
[1721050111395,1.74372227,3357.6,3357.5,2.9784]
[1721050111587,4.04702227,3357.6,3357.5,2.9784]
[1721050111783,4.04713725,3357.6,3357.5,2.9784]
[1721050112574,4.04713725,3357.6,3357.2,2.97865]
[1721050112776,1.56350556,3357.4,3357.2,2.97865]
[1721050113006,3.30734281,3357.3,3357.2,2.97865]
[1721050113999,1.74383725,3357.3,3357.2,2.97865]
[1721050114196,3.30743867,3357.3,3357.2,2.97865]
[1721050114395,1.74383725,3357.3,3357.2,2.97865]
[1721050114694,2.94032964,3357.3,3357.2,2.97865]
[1721050114896,3.30739931,3357.3,3357.0,2.97883]
[1721050115065,1.56365669,3357.1,3357.0,2.97883]
[1721050115265,2.00843599,3357.1,3357.0,2.97883]
[1721050115990,0.4447793,3357.1,3357.0,2.97883]
[1721050116389,2.00829577,3357.1,3357.0,2.97883]
[1721050116903,0.4447793,3357.1,3357.0,2.97883]
[1721050117067,2.2732,3357.0,3356.5,2.97922]
[1721050117421,1.25087764,3356.7,3356.6,2.9792]
[1721050117569,0.07770963,3356.7,3356.6,2.9792]
[1721050117768,1.32839974,3356.7,3356.6,2.9792]
[1721050117990,1.6954608,3356.7,3356.6,2.9792]
[1721050118187,0.44478279,3356.7,3356.6,2.9792]
[1721050118388,1.2505912,3356.8,3356.6,2.9792]
[1721050118389,1.2505912,3356.8,3356.7,2.97911]
[1721050118698,0.07771512,3356.8,3356.7,2.97911]
[1721050119013,1.32823565,3356.8,3356.7,2.97911]
[1721050119194,1.69557257,3356.8,3356.7,2.97911]
[1721050120013,1.69557257,3356.8,3356.7,5.95822]
[1721050121431,1.69557318,3356.8,3356.7,5.95822]
[1721050122025,1.69521296,3356.8,3356.7,5.95822]
[1721050123128,1.69521296,3356.8,3356.7,2.97911]
[1721050123719,0.44505264,3356.8,3356.7,2.97911]
[1721050123904,1.25001837,3356.8,3356.7,2.97911]
[1721050124099,1.69507101,3356.8,3356.7,2.97911]
[1721050124420,1.69507101,3356.8,3356.5,2.97927]
[1721050124421,1.69497909,3356.8,3356.5,2.97927]
[1721050124627,0.36733692,3356.8,3356.5,5.95848]
[1721050124813,1.69500577,3356.7,3356.5,2.97921]
[1721050124993,0.44505702,3356.6,3356.5,2.97921]
[1721050125827,1.64015603,3356.6,3356.3,5.9588]
[1721050126032,1.24990808,3356.4,3356.3,2.9794]
[1721050126296,0.44505702,3356.4,3356.3,2.9794]
[1721050126409,0.44505702,3356.4,3356.3,5.95887]
[1721050126410,0.0777201,3356.4,3356.3,5.95887]
[1721050126611,1.01512525,3356.4,3356.3,5.95887]
[1721050126925,0.0777201,3356.4,3356.3,5.95887]
[1721050127123,0.93740515,3356.5,3356.3,2.97947]
[1721050127299,0.93740515,3356.5,3356.4,5.95876]
[1721050127500,1.01512705,3356.5,3356.4,5.95876]
[1721050127820,1.01512701,3356.5,3356.4,5.95876]
[1721050128853,0.07772186,3356.5,3356.4,5.95876]
[1721050129320,1.01512701,3356.5,3356.4,5.95876]
[1721050130299,0.70237337,3356.5,3356.4,5.95876]
[1721050130500,0.93740515,3356.7,3356.6,5.9584]
[1721050130501,0.62465151,3356.7,3356.6,5.9584]
[1721050130731,0.93740515,3356.8,3356.7,5.95822]
[1721050130913,1.01511932,3356.8,3356.7,5.95822]
[1721050131108,0.93740515,3356.8,3356.7,5.95822]
[1721050131534,1.01511854,3356.8,3356.7,5.95822]
[1721050133826,1.24990808,3356.9,3356.8,2.97902]
[1721050134040,1.24990808,3357.0,3356.9,2.97893]
[1721050134204,0.44460674,3357.0,3356.9,2.97893]
[1721050134400,0.36689538,3357.0,3356.9,2.97893]
[1721050134599,1.24990808,3357.0,3356.9,2.97893]
[1721050134836,0.36689538,3357.0,3356.9,2.97893]
[1721050135024,1.24929563,3357.0,3356.9,2.97893]
[1721050135220,1.61619101,3357.0,3356.9,2.97893]
[1721050135426,1.69390357,3357.0,3356.9,2.97893]
[1721050136210,1.24929563,3357.0,3356.9,2.97893]
[1721050136429,0.44460794,3357.0,3356.8,2.97902]
[1721050136627,1.69405587,3356.9,3356.8,2.97902]
[1721050136837,1.24944793,3356.9,3356.8,2.97902]
[1721050137280,3.67484793,3356.9,3356.6,2.97918]
[1721050137563,1.61634331,3356.8,3356.5,2.97929]
[1721050137739,1.24944793,3356.6,3356.5,2.97929]
[1721050137957,0.44461827,3356.6,3356.5,2.97929]
[1721050138738,1.24944793,3356.7,3356.5,2.97929]
[1721050139239,1.24944793,3356.7,3356.1,2.97962]
[1721050139434,0.62476173,3356.3,3356.2,5.97956]
[1721050139635,0.62476173,3356.4,3356.3,5.95894]
[1721050139838,0.07772241,3356.4,3356.3,5.95894]
[1721050140093,0.9371426,3356.6,3356.4,2.97938]
[1721050140094,0.62476173,3356.6,3356.4,2.97938]
[1721050140248,0.62476173,3356.6,3356.5,2.97929]
[1721050140564,0.62476173,3356.6,3356.5,5.95858]
[1721050140732,0.62476173,3356.7,3356.6,5.9584]
[1721050140954,0.70247247,3356.7,3356.6,5.9584]
[1721050141588,0.07771074,3356.7,3356.6,5.9584]
[1721050141787,1.01485334,3356.7,3356.6,5.9584]
[1721050142172,0.07771074,3356.7,3356.6,5.9584]
[1721050142357,0.70233664,3356.7,3356.6,5.9584]
[1721050142556,0.6246259,3356.7,3356.6,5.9584]
[1721050142760,0.07771074,3356.7,3356.6,8.9376]
[1721050142964,0.6246259,3356.9,3356.8,2.97902]
[1721050143199,0.07770542,3356.9,3356.8,6.50804]
[1721050143960,0.07770542,3356.9,3356.8,9.48706]
[1721050144160,0.6246259,3357.0,3356.9,8.93679]
[1721050144488,1.24944793,3357.3,3357.0,5.9577]
[1721050144489,0.6246259,3357.1,3357.0,5.9577]
[1721050144687,0.70232731,3357.1,3357.0,5.9577]
[1721050144886,0.70232731,3357.1,3357.0,6.5077]
[1721050145094,0.07770141,3357.1,3357.0,6.5077]
[1721050145398,0.6245229,3357.1,3357.0,6.5077]
[1721050145585,3.3295426,3357.2,3357.1,2.97876]
[1721050145895,4.74486402,3357.2,3356.2,5.97954]
[1721050146066,0.93686773,3356.8,3356.7,2.97905]